fUST/lending_fUST_20250317
["ID","MTS","AMOUNT","RATE_DAILY","PERIOD"]
[356290565,1742194252404,-3380.61,8.767e-05,2]
[356290566,1742194252414,-500.0,8.767e-05,2]
[356290567,1742194252423,-968.04,8.767e-05,2]
[356290568,1742194252432,-636.47,8.767e-05,2]
[356290569,1742194252442,-992.27,8.767e-05,2]
[356290570,1742194252452,-500.0,8.767e-05,2]
[356290571,1742194252461,-512.695723,8.767e-05,2]
[356290572,1742194252471,-2083.06,8.767e-05,2]
[356290573,1742194252480,-500.0,8.767e-05,2]
[356290574,1742194252490,-810.74292333,8.777e-05,2]
[356290575,1742194252500,-420.0,8.818e-05,2]
[356290576,1742194252509,-150.390419,8.82e-05,4]
[356290577,1742194252519,-500.0,9.041e-05,2]
[356290578,1742194252528,-500.86186104,9.041e-05,2]
[356290579,1742194252538,-500.0,9.041e-05,2]
[356290580,1742194252548,-500.0,9.041e-05,2]
[356290581,1742194252558,-500.0,9.041e-05,2]
[356290582,1742194252568,-500.0,9.041e-05,2]
[356290583,1742194252577,-500.0,9.041e-05,2]
[356290584,1742194252587,-500.0,9.041e-05,2]
[356290585,1742194252598,-573.63,9.041e-05,2]
[356290586,1742194252607,-500.0,9.041e-05,2]
[356290587,1742194252618,-500.0,9.041e-05,2]
[356290588,1742194252627,-500.0,9.041e-05,2]
[356290589,1742194252639,-529.28499181,9.041e-05,2]
[356290590,1742194252650,-182.25140964,9.041e-05,2]
[356290591,1742194252660,-500.0,9.041e-05,2]
[356290592,1742194252670,-500.0,9.041e-05,2]
[356290593,1742194252680,-539.82,9.041e-05,2]
[356290594,1742194252690,-671.47,9.041e-05,2]
[356290595,1742194252700,-518.92038656,9.041e-05,2]
[356290596,1742194252710,-500.0,9.041e-05,2]
[356290597,1742194252720,-500.0,9.041e-05,2]
[356290598,1742194252731,-500.0,9.041e-05,2]
[356290599,1742194252740,-500.0,9.041e-05,2]
[356290600,1742194252750,-500.0,9.041e-05,2]
[356290601,1742194252760,-195.51112294,9.041e-05,2]
[356290602,1742194252770,-447.41859591,9.041e-05,2]
[356290603,1742194252780,-500.0,9.041e-05,2]
[356290604,1742194252790,-4828.53,9.041e-05,2]
[356290605,1742194252800,-500.0,9.041e-05,2]
[356290606,1742194252810,-500.0,9.041e-05,2]
[356290607,1742194252820,-500.0,9.041e-05,2]
[356290608,1742194252829,-617.71,9.041e-05,2]
[356290609,1742194252839,-558.27,9.041e-05,2]
[356290610,1742194252849,-500.0,9.041e-05,2]
[356290611,1742194252859,-1214.44,9.041e-05,2]
[356290612,1742194252868,-2133.34,9.041e-05,2]
[356290613,1742194252878,-2860.57,9.041e-05,2]
[356290614,1742194252888,-4056.69,9.041e-05,2]
[356290615,1742194252897,-500.0,9.041e-05,2]
[356290616,1742194252908,-6422.88,9.041e-05,2]
[356290617,1742194252918,-2132.27,9.041e-05,2]
[356290618,1742194252928,-500.0,9.041e-05,2]
[356290619,1742194252937,-500.0,9.041e-05,2]
[356290620,1742194252946,-1678.31,9.041e-05,2]
[356290621,1742194252956,-1537.89,9.041e-05,2]
[356290622,1742194252966,-505.53,9.041e-05,2]
[356290623,1742194252976,-9282.94,9.041e-05,2]
[356290624,1742194252986,-500.0,9.041e-05,2]
[356290625,1742194252996,-1535.24,9.041e-05,2]
[356290626,1742194253005,-500.0,9.041e-05,2]
[356290627,1742194253015,-891.6,9.041e-05,2]
[356290628,1742194253025,-500.0,9.041e-05,2]
[356290629,1742194253034,-1040.57,9.041e-05,2]
[356290630,1742194253044,-2135.47,9.041e-05,2]
[356290631,1742194253055,-500.0,9.041e-05,2]
[356290632,1742194253065,-80256.52,9.041e-05,2]
[356290633,1742194253074,-386.54217996,9.041e-05,2]
[356290634,1742194253084,-500.0,9.041e-05,2]
[356290635,1742194253093,-6900.7,9.041e-05,2]
[356290636,1742194253103,-2872.17,9.041e-05,2]
[356290637,1742194253113,-500.0,9.041e-05,2]
[356290638,1742194253283,-500.0,9.041e-05,2]
[356290639,1742194253294,-500.0,9.041e-05,2]
[356290640,1742194253305,-4572.06,9.041e-05,2]
[356290641,1742194253315,-2466.2,9.041e-05,2]
[356290642,1742194253325,-500.0,9.041e-05,2]
[356290643,1742194253335,-700.64,9.041e-05,2]
[356290644,1742194253346,-703.94,9.041e-05,2]
[356290645,1742194253356,-500.0,9.041e-05,2]
[356290646,1742194253365,-660.57,9.041e-05,2]
[356290647,1742194253376,-581.1,9.041e-05,2]
[356290648,1742194253386,-3380.61,9.041e-05,2]
[356290649,1742194253396,-500.0,9.041e-05,2]
[356290650,1742194253406,-968.04,9.041e-05,2]
[356290651,1742194253416,-636.47,9.041e-05,2]
[356290652,1742194253427,-992.27,9.041e-05,2]
[356290653,1742194253437,-509.64186237,9.041e-05,2]
[356290654,1742194253447,-2083.06,9.041e-05,2]
[356290655,1742194253458,-500.0,9.041e-05,2]
[356290656,1742194253468,-1000.0,9.068e-05,2]
[356290657,1742194253478,-199.68515814,9.222e-05,2]
[356290658,1742194253488,-810.74292333,9.299e-05,2]
[356290659,1742194253498,-1000.0,9.3e-05,2]
[356290660,1742194253509,-500.0,9.315e-05,2]
[356290661,1742194253520,-500.0,9.315e-05,2]
[356290662,1742194253530,-500.0,9.315e-05,2]
[356290663,1742194253540,-500.0,9.315e-05,2]
[356290664,1742194253550,-500.0,9.315e-05,2]
[356290665,1742194253560,-573.63,9.315e-05,2]
[356290666,1742194253570,-500.0,9.315e-05,2]
[356290667,1742194253580,-500.0,9.315e-05,2]
[356290668,1742194253590,-500.0,9.315e-05,2]
[356290669,1742194253600,-500.0,9.315e-05,2]
[356290670,1742194253609,-500.0,9.315e-05,2]
[356290671,1742194253619,-539.82,9.315e-05,2]
[356290672,1742194253629,-671.47,9.315e-05,2]
[356290673,1742194253639,-500.0,9.315e-05,2]
[356290674,1742194253649,-500.0,9.315e-05,2]
[356290675,1742194253659,-500.0,9.315e-05,2]
[356290676,1742194253669,-4828.53,9.315e-05,2]
[356290677,1742194253678,-500.0,9.315e-05,2]
[356290678,1742194253688,-459.99517546,9.315e-05,2]
[356290679,1742194253698,-500.0,9.315e-05,2]
[356290680,1742194253708,-617.71,9.315e-05,2]
[356290681,1742194253718,-558.27,9.315e-05,2]
[356290682,1742194253728,-500.0,9.315e-05,2]
[356290683,1742194253738,-1214.44,9.315e-05,2]
[356290684,1742194253747,-2133.34,9.315e-05,2]
[356290685,1742194253758,-2860.57,9.315e-05,2]
[356290686,1742194253768,-591.57375102,9.315e-05,2]
[356290687,1742194254192,-490.66197027,8.219e-05,2]
[356290688,1742194254204,-411.14802973,8.219e-05,2]
[356290689,1742194254214,-396.74161224,8.219e-05,2]
[356290690,1742194254223,-500.0,8.767e-05,2]
[356290691,1742194254233,-515.76477318,8.767e-05,2]
[356290692,1742194254242,-500.0,9.041e-05,2]
[356290693,1742194254252,-3465.11624898,9.315e-05,2]
[356290694,1742194254264,-500.0,9.315e-05,2]
[356290695,1742194254274,-6422.88,9.315e-05,2]
[356290696,1742194254284,-2132.27,9.315e-05,2]
[356290697,1742194254297,-500.0,9.315e-05,2]
[356290698,1742194254309,-500.0,9.315e-05,2]
[356290699,1742194254319,-1678.31,9.315e-05,2]
[356290700,1742194254329,-1537.89,9.315e-05,2]
[356290701,1742194254341,-505.53,9.315e-05,2]
[356290702,1742194254351,-9282.94,9.315e-05,2]
[356290703,1742194254360,-500.0,9.315e-05,2]
[356290704,1742194254370,-1535.24,9.315e-05,2]
[356290705,1742194254379,-500.0,9.315e-05,2]
[356290706,1742194254388,-891.6,9.315e-05,2]
[356290707,1742194254397,-500.0,9.315e-05,2]
[356290708,1742194254407,-1040.57,9.315e-05,2]
[356290709,1742194254416,-179.71852659,9.315e-05,2]
[356290710,1742194254429,-1955.75147341,9.315e-05,2]
[356290711,1742194254438,-8969.62067949,9.315e-05,2]
[356290712,1742194499965,739.0,8e-05,2]
[356290713,1742194803100,-214.08328978,8.017e-05,2]
[356290759,1742195432976,-316.15319296,8.017e-05,2]
[356290761,1742195432987,-300.0,8.017e-05,2]
[356290763,1742195432996,-798.07441439,8.018e-05,2]
[356290765,1742195433008,-606.84252089,8.018e-05,2]
[356290768,1742195433021,-23544.31043749,8.018e-05,2]
[356290781,1742195438881,-2692.7137372,8.018e-05,2]
[356290782,1742195438894,-40459.88543899,8.018e-05,2]
[356290789,1742195441135,-5558.65997198,8.018e-05,2]
[356290790,1742195441147,-949.75236137,8.018e-05,2]
[356290801,1742195443880,-1085.07349445,8.018e-05,2]
[356290802,1742195443892,-296.77130988,8.018e-05,2]
[356290803,1742195443904,-986.19572892,8.018e-05,2]
[356290804,1742195443922,-145021.72058444,8.018e-05,2]
[356290805,1742195443932,-500.0,8.193e-05,2]
[356290806,1742195443941,-189.010941,8.193e-05,2]
[356290807,1742195443951,-189.01094098,8.2e-05,2]
[356290808,1742195443960,-189.01094098,8.206e-05,2]
[356290809,1742195443970,-189.01094098,8.213e-05,2]
[356290810,1742195443979,-3578.77535347,8.219e-05,2]
[356290811,1742195443989,-500.0,8.219e-05,2]
[356290812,1742195443999,-500.0,8.219e-05,2]
[356290813,1742195444008,-500.0,8.219e-05,2]
[356290814,1742195444018,-500.0,8.219e-05,2]
[356290815,1742195444027,-530.80142436,8.219e-05,2]
[356290816,1742195444037,-518.34063111,8.219e-05,2]
[356290817,1742195444046,-524.07730034,8.219e-05,2]
[356290818,1742195444056,-517.20901924,8.219e-05,2]
[356290819,1742195444065,-519.95660941,8.219e-05,2]
[356290820,1742195444075,-511.47152608,8.219e-05,2]
[356290821,1742195444084,-529.85513835,8.219e-05,2]
[356290822,1742195444093,-500.0,8.219e-05,2]
[356290823,1742195444103,-500.0,8.219e-05,2]
[356290824,1742195444112,-518.45129798,8.219e-05,2]
[356290825,1742195444122,-500.0,8.219e-05,2]
[356290826,1742195444135,-500.0,8.219e-05,2]
[356290827,1742195444147,-500.0,8.219e-05,2]
[356290828,1742195444160,-513.44494879,8.219e-05,2]
[356290829,1742195444172,-500.0,8.219e-05,2]
[356290830,1742195444185,-500.0,8.219e-05,2]
[356290831,1742195444197,-500.0,8.219e-05,2]
[356290832,1742195444207,-500.0,8.219e-05,2]
[356290833,1742195444218,-559.42391411,8.219e-05,2]
[356290834,1742195444229,-500.0,8.219e-05,2]
[356290835,1742195444241,-514.02160902,8.219e-05,2]
[356290836,1742195444253,-500.0,8.219e-05,2]
[356290837,1742195444265,-500.0,8.219e-05,2]
[356290838,1742195444277,-500.0,8.219e-05,2]
[356290839,1742195444289,-500.0,8.219e-05,2]
[356290840,1742195444301,-500.0,8.219e-05,2]
[356290841,1742195444313,-500.0,8.219e-05,2]
[356290842,1742195444324,-500.0,8.219e-05,2]
[356290843,1742195444336,-595.01,8.219e-05,2]
[356290844,1742195444348,-516.54222648,8.219e-05,2]
[356290845,1742195444362,-500.0,8.219e-05,2]
[356290846,1742195444375,-500.0,8.219e-05,2]
[356290847,1742195444388,-500.0,8.219e-05,2]
[356290848,1742195444399,-500.0,8.219e-05,2]
[356290849,1742195444411,-500.0,8.219e-05,2]
[356290850,1742195444422,-500.0,8.219e-05,2]
[356290851,1742195444433,-500.0,8.219e-05,2]
[356290852,1742195444444,-500.0,8.219e-05,2]
[356290853,1742195444455,-500.0,8.219e-05,2]
[356290854,1742195444467,-500.0,8.219e-05,2]
[356290855,1742195444479,-500.0,8.219e-05,2]
[356290856,1742195444491,-511.78636602,8.219e-05,2]
[356290857,1742195444501,-449.12909636,8.219e-05,2]
[356290858,1742195444513,-500.0,8.219e-05,2]
[356290859,1742195444523,-514.64000062,8.219e-05,2]
[356290860,1742195444533,-500.0,8.219e-05,2]
[356290861,1742195444543,-500.0,8.219e-05,2]
[356290862,1742195444554,-500.0,8.219e-05,2]
[356290863,1742195444566,-500.0,8.219e-05,2]
[356290864,1742195444575,-500.0,8.219e-05,2]
[356290865,1742195444587,-500.0,8.219e-05,2]
[356290866,1742195444599,-500.0,8.219e-05,2]
[356290867,1742195444612,-500.0,8.219e-05,2]
[356290868,1742195444625,-518.57845375,8.219e-05,2]
[356290869,1742195444637,-500.0,8.219e-05,2]
[356290870,1742195444648,-500.0,8.219e-05,2]
[356290871,1742195444663,-500.0,8.219e-05,2]
[356290872,1742195444675,-500.0,8.219e-05,2]
[356290873,1742195444687,-500.0,8.219e-05,2]
[356290874,1742195444700,-500.0,8.219e-05,2]
[356290875,1742195444712,-500.0,8.219e-05,2]
[356290876,1742195444724,-196.33665202,8.219e-05,2]
[356290877,1742195444736,-625.73438736,8.219e-05,2]
[356290878,1742195444746,-500.0,8.219e-05,2]
[356290879,1742195444757,-500.0,8.219e-05,2]
[356290880,1742195444767,-500.0,8.219e-05,2]
[356290881,1742195444777,-500.0,8.219e-05,2]
[356290882,1742195444788,-500.0,8.219e-05,2]
[356290883,1742195444799,-500.0,8.219e-05,2]
[356290884,1742195444811,-500.0,8.219e-05,2]
[356290885,1742195444824,-500.0,8.219e-05,2]
[356290886,1742195444836,-500.0,8.219e-05,2]
[356290887,1742195444848,-503.88443609,8.219e-05,2]
[356290888,1742195444858,-523.78495883,8.219e-05,2]
[356290889,1742195444870,-500.0,8.219e-05,2]
[356290890,1742195444881,-500.0,8.219e-05,2]
[356290891,1742195444891,-500.0,8.219e-05,2]
[356290892,1742195444902,-500.0,8.219e-05,2]
[356290893,1742195444914,-500.0,8.219e-05,2]
[356290894,1742195444925,-500.0,8.219e-05,2]
[356290895,1742195444936,-500.0,8.219e-05,2]
[356290896,1742195444947,-506.56471043,8.219e-05,2]
[356290897,1742195444958,-500.0,8.219e-05,2]
[356290898,1742195444968,-500.0,8.219e-05,2]
[356290899,1742195444978,-506.42862719,8.219e-05,2]
[356290900,1742195444989,-500.0,8.219e-05,2]
[356290901,1742195445000,-500.0,8.219e-05,2]
[356290902,1742195445011,-500.0,8.219e-05,2]
[356290903,1742195445022,-214.87296252,8.219e-05,2]
[356290904,1742195445033,-500.0,8.219e-05,2]
[356290905,1742195445046,-500.0,8.219e-05,2]
[356290906,1742195445056,-500.0,8.219e-05,2]
[356290907,1742195445069,-500.0,8.219e-05,2]
[356290908,1742195445081,-500.0,8.219e-05,2]
[356290909,1742195445093,-605.59125229,8.219e-05,2]
[356290910,1742195445104,-500.0,8.219e-05,2]
[356290911,1742195445116,-500.0,8.219e-05,2]
[356290912,1742195445126,-500.0,8.219e-05,2]
[356290913,1742195445136,-500.0,8.219e-05,2]
[356290914,1742195445148,-518.56879275,8.219e-05,2]
[356290915,1742195445158,-500.0,8.219e-05,2]
[356290916,1742195445170,-378.03334567,8.219e-05,2]
[356290917,1742195445181,-500.0,8.219e-05,2]
[356290918,1742195445193,-500.0,8.219e-05,2]
[356290919,1742195445206,-500.0,8.219e-05,2]
[356290920,1742195445218,-500.0,8.219e-05,2]
[356290921,1742195445230,-500.0,8.219e-05,2]
[356290922,1742195445241,-500.0,8.219e-05,2]
[356290923,1742195445252,-243.24370721,8.219e-05,2]
[356290924,1742195445263,-500.0,8.219e-05,2]
[356290925,1742195445275,-500.0,8.219e-05,2]
[356290926,1742195445289,-500.0,8.219e-05,2]
[356290927,1742195445303,-500.0,8.219e-05,2]
[356290928,1742195445315,-324.55563932,8.219e-05,2]
[356290929,1742195445326,-500.0,8.219e-05,2]
[356290930,1742195445337,-500.0,8.219e-05,2]
[356290931,1742195445348,-500.0,8.219e-05,2]
[356290932,1742195445359,-500.0,8.219e-05,2]
[356290933,1742195445371,-500.0,8.219e-05,2]
[356290934,1742195445382,-500.0,8.219e-05,2]
[356290935,1742195445393,-500.0,8.219e-05,2]
[356290936,1742195445405,-500.0,8.219e-05,2]
[356290937,1742195445416,-500.0,8.219e-05,2]
[356290938,1742195445427,-500.0,8.219e-05,2]
[356290939,1742195445438,-500.0,8.219e-05,2]
[356290940,1742195445448,-500.0,8.219e-05,2]
[356290941,1742195445459,-500.0,8.219e-05,2]
[356290942,1742195445470,-500.0,8.219e-05,2]
[356290943,1742195445481,-500.0,8.219e-05,2]
[356290944,1742195445491,-500.0,8.219e-05,2]
[356290945,1742195445502,-500.0,8.219e-05,2]
[356290946,1742195445512,-500.0,8.219e-05,2]
[356290947,1742195445523,-500.0,8.219e-05,2]
[356290948,1742195445533,-500.0,8.219e-05,2]
[356290949,1742195445546,-419.91,8.219e-05,2]
[356290950,1742195445556,-500.0,8.219e-05,2]
[356290951,1742195445567,-500.0,8.219e-05,2]
[356290952,1742195445578,-500.0,8.219e-05,2]
[356290953,1742195445588,-500.0,8.219e-05,2]
[356290954,1742195445599,-233.86611175,8.219e-05,2]
[356290955,1742195445609,-500.0,8.219e-05,2]
[356290956,1742195445621,-500.0,8.219e-05,2]
[356290957,1742195445632,-512.9069957,8.219e-05,2]
[356290958,1742195445642,-500.0,8.219e-05,2]
[356290959,1742195445656,-500.0,8.219e-05,2]
[356290960,1742195445669,-500.0,8.219e-05,2]
[356290961,1742195445680,-512.34441691,8.219e-05,2]
[356290962,1742195445691,-500.0,8.219e-05,2]
[356290963,1742195445702,-500.0,8.219e-05,2]
[356290964,1742195445712,-580.04216966,8.219e-05,2]
[356290965,1742195445722,-961.43,8.219e-05,2]
[356290966,1742195445732,-544.92624576,8.219e-05,2]
[356290967,1742195445743,-519.47355102,8.219e-05,2]
[356290968,1742195445754,-514.99875554,8.219e-05,2]
[356290969,1742195445764,-500.0,8.219e-05,2]
[356290970,1742195445775,-514.98855353,8.219e-05,2]
[356290971,1742195445784,-500.32088286,8.219e-05,2]
[356290972,1742195445794,-561.98410458,8.219e-05,2]
[356290973,1742195445804,-3212.72,8.219e-05,2]
[356290974,1742195445814,-500.0,8.219e-05,2]
[356290975,1742195445826,-537.39530827,8.219e-05,2]
[356290976,1742195445837,-503.9811002,8.219e-05,2]
[356290977,1742195445847,-500.0,8.219e-05,2]
[356290978,1742195445858,-440.52595309,8.219e-05,2]
[356290979,1742195445870,-500.0,8.219e-05,2]
[356290980,1742195445881,-500.0,8.219e-05,2]
[356290981,1742195445893,-500.0,8.219e-05,2]
[356290982,1742195445904,-3211.55,8.219e-05,2]
[356290983,1742195445914,-501.85053301,8.219e-05,2]
[356290984,1742195445925,-500.0,8.219e-05,2]
[356290985,1742195445936,-500.0,8.219e-05,2]
[356290986,1742195445946,-507.61271742,8.219e-05,2]
[356290987,1742195445958,-2264.61,8.219e-05,2]
[356290988,1742195445969,-508.45548133,8.219e-05,2]
[356290989,1742195445979,-5362.55,8.219e-05,2]
[356290990,1742195445990,-504.35772482,8.219e-05,2]
[356290991,1742195446002,-189.01094098,8.219e-05,2]
[356290992,1742195446012,-500.0,8.219e-05,2]
[356290993,1742195446023,-7821.66,8.219e-05,2]
[356290994,1742195446034,-500.0,8.219e-05,2]
[356290995,1742195446044,-1688.05,8.219e-05,2]
[356290996,1742195446055,-500.0,8.219e-05,2]
[356290997,1742195446071,-504.75720715,8.219e-05,2]
[356290998,1742195446083,-503.64412595,8.219e-05,2]
[356290999,1742195446093,-500.0,8.219e-05,2]
[356291001,1742195446104,-500.0,8.219e-05,2]
[356291002,1742195446114,-500.0,8.219e-05,2]
[356291003,1742195446125,-500.0,8.219e-05,2]
[356291004,1742195446135,-500.0,8.219e-05,2]
[356291005,1742195446144,-500.0,8.219e-05,2]
[356291006,1742195446153,-500.0,8.219e-05,2]
[356291007,1742195446161,-1295.71,8.219e-05,2]
[356291008,1742195446170,-1328.66,8.219e-05,2]
[356291009,1742195446180,-517.34192498,8.219e-05,2]
[356291010,1742195446189,-866.72,8.219e-05,2]
[356291012,1742195446431,-1217.5,8.219e-05,2]
[356291013,1742195446453,-513.94139832,8.219e-05,2]
[356291014,1742195446466,-500.0,8.219e-05,2]
[356291015,1742195446476,-500.0,8.219e-05,2]
[356291016,1742195446486,-512.91537995,8.219e-05,2]
[356291017,1742195446497,-511.30118183,8.219e-05,2]
[356291018,1742195446507,-506.59040788,8.219e-05,2]
[356291019,1742195446517,-500.0,8.219e-05,2]
[356291020,1742195446527,-507.16745731,8.219e-05,2]
[356291021,1742195446536,-500.0,8.219e-05,2]
[356291022,1742195446546,-506.82318712,8.219e-05,2]
[356291023,1742195446556,-71781.38,8.219e-05,2]
[356291024,1742195446565,-705.85,8.219e-05,2]
[356291025,1742195446575,-500.0,8.219e-05,2]
[356291026,1742195446585,-500.0,8.219e-05,2]
[356291027,1742195446594,-1690.58,8.219e-05,2]
[356291028,1742195446603,-500.0,8.219e-05,2]
[356291029,1742195446614,-2581.36,8.219e-05,2]
[356291030,1742195446624,-500.0,8.219e-05,2]
[356291031,1742195446633,-500.0,8.219e-05,2]
[356291032,1742195446643,-250.51698514,8.219e-05,2]
[356291033,1742195446655,-500.0,8.219e-05,2]
[356291034,1742195446666,-500.0,8.219e-05,2]
[356291035,1742195446675,-5750.58,8.219e-05,2]
[356291036,1742195446685,-500.0,8.219e-05,2]
[356291037,1742195446695,-500.0,8.219e-05,2]
[356291038,1742195446705,-4158.52,8.219e-05,2]
[356291039,1742195446714,-5808.98,8.219e-05,2]
[356291040,1742195446723,-605.72,8.219e-05,2]
[356291041,1742195446735,-500.0,8.219e-05,2]
[356291042,1742195446745,-500.0,8.219e-05,2]
[356291043,1742195446763,-506.40354408,8.219e-05,2]
[356291044,1742195446773,-513.26507013,8.219e-05,2]
[356291045,1742195446783,-500.0,8.219e-05,2]
[356291046,1742195446792,-518.51282367,8.219e-05,2]
[356291047,1742195446802,-500.0,8.219e-05,2]
[356291048,1742195446811,-500.0,8.219e-05,2]
[356291049,1742195446821,-505.09,8.219e-05,2]
[356291050,1742195446831,-500.0,8.219e-05,2]
[356291051,1742195446841,-500.0,8.219e-05,2]
[356291052,1742195446850,-500.0,8.219e-05,2]
[356291053,1742195446860,-500.0,8.219e-05,2]
[356291054,1742195446871,-500.0,8.219e-05,2]
[356291056,1742195446880,-500.0,8.219e-05,2]
[356291058,1742195446892,-304.06959489,8.219e-05,2]
[356291059,1742195446902,-500.0,8.219e-05,2]
[356291060,1742195446912,-524.87857064,8.219e-05,2]
[356291061,1742195446921,-552.4,8.219e-05,2]
[356291062,1742195446931,-638.68,8.219e-05,2]
[356291063,1742195446940,-578.44,8.219e-05,2]
[356291064,1742195446952,-500.0,8.219e-05,2]
[356291065,1742195446961,-500.0,8.219e-05,2]
[356291066,1742195446971,-865.1,8.219e-05,2]
[356291067,1742195446979,-500.0,8.219e-05,2]
[356291068,1742195446989,-2817.17,8.219e-05,2]
[356291069,1742195446998,-900.1,8.219e-05,2]
[356291070,1742195447007,-515.44535856,8.219e-05,2]
[356291071,1742195447017,-500.0,8.219e-05,2]
[356291072,1742195447026,-516.05453339,8.219e-05,2]
[356291073,1742195447036,-3822.59,8.219e-05,2]
[356291074,1742195447045,-521.63139025,8.219e-05,2]
[356291075,1742195447055,-1905.56,8.219e-05,2]
[356291076,1742195447065,-500.0,8.219e-05,2]
[356291077,1742195447074,-500.0,8.219e-05,2]
[356291078,1742195447083,-500.0,8.219e-05,2]
[356291079,1742195447092,-417.81762827,8.34e-05,2]
[356291080,1742195447102,-160.0,8.34e-05,2]
[356291081,1742195447111,-160.0,8.34e-05,2]
[356291082,1742195447121,-833.89138366,8.34e-05,2]
[356291083,1742195447131,-150.0,8.443e-05,2]
[356291084,1742195447140,-1914.0,8.443e-05,2]
[356291085,1742195447149,-2267.0,8.443e-05,2]
[356291086,1742195447159,-541.0,8.443e-05,2]
[356291087,1742195447168,-399.0,8.443e-05,2]
[356291088,1742195447177,-500.0,8.493e-05,2]
[356291089,1742195447187,-155.779,8.493e-05,2]
[356291090,1742195447197,-500.0,8.493e-05,2]
[356291091,1742195447206,-500.0,8.493e-05,2]
[356291092,1742195447215,-500.0,8.493e-05,2]
[356291093,1742195447225,-500.0,8.493e-05,2]
[356291094,1742195447235,-500.0,8.493e-05,2]
[356291095,1742195447246,-500.0,8.493e-05,2]
[356291096,1742195447255,-500.0,8.493e-05,2]
[356291097,1742195447266,-595.01,8.493e-05,2]
[356291098,1742195447275,-500.0,8.493e-05,2]
[356291099,1742195447284,-500.0,8.493e-05,2]
[356291100,1742195447293,-500.0,8.493e-05,2]
[356291101,1742195447303,-500.0,8.493e-05,2]
[356291102,1742195447312,-507.19139453,8.493e-05,2]
[356291103,1742195447321,-500.0,8.493e-05,2]
[356291104,1742195447331,-500.0,8.493e-05,2]
[356291105,1742195447340,-500.51403974,8.493e-05,2]
[356291106,1742195447350,-500.0,8.493e-05,2]
[356291107,1742195447359,-500.0,8.493e-05,2]
[356291108,1742195447369,-500.0,8.493e-05,2]
[356291109,1742195447378,-401.86024678,8.493e-05,2]
[356291110,1742195447387,-500.0,8.493e-05,2]
[356291111,1742195447396,-961.43,8.493e-05,2]
[356291112,1742195447405,-3212.72,8.493e-05,2]
[356291113,1742195447415,-500.0,8.493e-05,2]
[356291114,1742195447424,-500.0,8.493e-05,2]
[356291115,1742195447433,-3211.55,8.493e-05,2]
[356291116,1742195447443,-151.0,8.493e-05,2]
[356291117,1742195447452,-151.0,8.493e-05,2]
[356291118,1742195447462,-2264.61,8.493e-05,2]
[356291119,1742195447471,-5362.55,8.493e-05,2]
[356291120,1742195447481,-7821.66,8.493e-05,2]
[356291121,1742195447490,-1688.05,8.493e-05,2]
[356291122,1742195447499,-500.0,8.493e-05,2]
[356291123,1742195447509,-500.0,8.493e-05,2]
[356291124,1742195447518,-500.0,8.493e-05,2]
[356291125,1742195447528,-1295.71,8.493e-05,2]
[356291126,1742195447538,-1328.66,8.493e-05,2]
[356291127,1742195447547,-866.72,8.493e-05,2]
[356291128,1742195447557,-1217.5,8.493e-05,2]
[356291129,1742195447567,-500.0,8.493e-05,2]
[356291130,1742195447577,-500.0,8.493e-05,2]
[356291131,1742195447586,-71781.38,8.493e-05,2]
[356291132,1742195447596,-705.85,8.493e-05,2]
[356291133,1742195447605,-500.0,8.493e-05,2]
[356291134,1742195447616,-1690.58,8.493e-05,2]
[356291135,1742195447626,-2581.36,8.493e-05,2]
[356291136,1742195447635,-500.0,8.493e-05,2]
[356291137,1742195447646,-5750.58,8.493e-05,2]
[356291138,1742195447657,-500.0,8.493e-05,2]
[356291139,1742195447668,-4158.52,8.493e-05,2]
[356291140,1742195447678,-5808.98,8.493e-05,2]
[356291141,1742195447687,-605.72,8.493e-05,2]
[356291142,1742195447698,-500.0,8.493e-05,2]
[356291143,1742195447707,-500.0,8.493e-05,2]
[356291144,1742195447717,-500.0,8.493e-05,2]
[356291145,1742195447726,-505.09,8.493e-05,2]
[356291146,1742195447738,-552.4,8.493e-05,2]